Cogmind - Beta 14 @@@ ROGUE MODE // 2025.05.05 @ 12:14:24 Player: fran Result: Destroyed by G-34 Mercenary with Small Laser Performance ------------- Evolutions (1) 500 Regions Visited (3) 600 Robots Destroyed (36) 180 Value Destroyed (883) 883 Prototype IDs (2) 40 Alien Tech Used (0) 0 Bonus (0) 0 TOTAL SCORE: 2203 Bonus ------- None Cogmind --------- Core Integrity 0/400 Matter 219/300 Energy 280/280 System Corruption 0% Temperature Cool (19) Movement Treading (160) Location -9/Storage Parts ------- > --- POWER (1) -------- Heavy Ion Engine > --- PROPULSION (3) --- Improved Treads Improved Treads Aluminum Leg > --- UTILITY (3) ------ Utility Shielding Authchip [Processor] > --- WEAPON (2) ------- Light Assault Rifle Rocket Launcher > --- INVENTORY (5) ---- Improved Ion Engine EM Shotgun Medium Laser EMP Blaster Peak State ------------ > --- POWER ------------ Heavy Ion Engine > --- PROPULSION ------- Improved Treads Aluminum Leg Aluminum Leg > --- UTILITY ---------- Utility Shielding Weapon Shielding Authchip [Processor] > --- WEAPON ----------- Light Assault Rifle Improved Assault Rifle > --- INVENTORY -------- Improved Ion Engine Improved Treads EM Shotgun Medium Laser [Rating: 17] Favorites ----------- Power Ion Engine Engine Ion Engine Propulsion Aluminum Leg Treads Improved Treads Leg Aluminum Leg Wheel Compact Wheel Utility Large Storage Unit Device Sensor Array Storage Large Storage Unit Hackware Authchip [Processor] Protection Utility Shielding Weapon Light Assault Rifle Energy Gun Small Laser Energy Cannon Beam Cannon Ballistic Gun Light Assault Rifle Launcher Rocket Launcher Build | -11 -10 -9 -9 ------- Run | Yrd Mat Mat Sto Slots Evolved 2 | . . 2 . Power . | . . . . Propulsion 1 | . . 1 . Utility 1 | . . 1 . Weapon . | . . . . Parts Attached 52 | 7 20 19 6 Power 8 | 1 2 4 1 Engine 8 | 1 2 4 1 Core . | . . . . Reactor . | . . . . Propulsion 24 | 2 12 9 1 Treads 6 | . 4 1 1 Leg 16 | . 8 8 . Wheel 2 | 2 . . . Hover . | . . . . Flight . | . . . . Utility 10 | 2 3 2 3 Device 3 | 1 1 1 . Storage 2 | 1 1 . . Processor . | . . . . Hackware 1 | . . . 1 Protection 4 | . 1 1 2 Artifact . | . . . . Weapon 10 | 2 3 4 1 Energy Gun 4 | 1 2 1 . Energy Cannon 1 | . . 1 . Ballistic Gun 4 | 1 1 2 . Ballistic Cannon . | . . . . Launcher 1 | . . . 1 Special Weapon . | . . . . Impact Weapon . | . . . . Slashing Weapon . | . . . . Piercing Weapon . | . . . . Special Melee Weapon . | . . . . Unidentified Prototypes 2 | . . 2 . Parts Lost 20 | . 7 10 3 Power 3 | . 2 1 . Propulsion 11 | . 3 7 1 Utility 4 | . 1 2 1 Weapon 2 | . 1 . 1 Highest Loss Streak 5 | . 3 5 2 To Critical Strikes . | . . . . Average Slot Usage (%) 92 | . 97 84 91 Engine 12 | . 13 11 11 Treads 3 | . 2 1 12 Leg 24 | . 23 28 21 Device 7 | . 9 6 . Storage 10 | . 14 9 . Hackware 1 | . . . 10 Protection 6 | . 2 9 15 Energy Gun 7 | . 7 9 . Ballistic Gun 16 | . 20 6 21 Peak Build Rating 17 | 7 8 13 17 Average Rating 9 | 5 7 10 16 On Entrance 6 | . 7 8 10 Naked Turns . | . . . . Heaviest Build 34 | 12 28 34 14 Greatest Support 46 | 26 40 30 46 Greatest Overweight (x) 3 | . 1 3 . Average Overweight (x) . | . . . . Largest Inventory Capacity 15 | 8 15 15 5 Average Capacity 12 | 7 13 13 5 Most Carried 15 | 7 15 14 5 Average Carried 9 | 5 10 9 4 Final Capacity 15 | 8 15 5 5 Final Carried 15 | 7 15 4 4 Class Distribution -------------------- 94% | Mutant 5% | Scavenger-Mutant Dominant Class ---------------- Mutant | -10/Materials Mutant | -9/Materials Mutant | -9/Storage Resources | -11 -10 -9 -9 ----------- Run | Yrd Mat Mat Sto Matter Collected 809 | 275 257 277 . Remotely . | . . . . Salvage Created 1310 | 136 630 469 75 Parts 77 | 7 36 28 6 Haulers Intercepted 2 | . 2 . . Recyclers Shooed 4 | . 2 2 . Parts Field Recycled . | . . . . Retrieved Matter . | . . . . Parts Self-Destructed . | . . . . Prevented . | . . . . Kills | -11 -10 -9 -9 ------- Run | Yrd Mat Mat Sto Combat Hostiles Destroyed 31 | . 13 16 2 Guns 25 | . 13 12 . Cannons 4 | . . 4 . AOE 2 | . . . 2 Classes Destroyed 6 | 2 3 1 . Tunneler 2 | 2 . . . Hauler 2 | . 2 . . Recycler 1 | 1 . . . Swarmer 11 | . 3 8 . Grunt 17 | . 10 6 1 Sentry 3 | . . 2 1 Best Kill Streak 6 | 3 2 6 2 Combat Bots Only 6 | . 2 6 2 Max Kills in Single Turn 2 | 1 1 1 2 Gunslinging . | . . . . Exploded 2 | . . . 2 Melee . | . . . . Uniques/NPCs Destroyed . | . . . . Combat | -11 -10 -9 -9 -------- Run | Yrd Mat Mat Sto Hostile Shots Fired 339 | . 95 195 49 Missed 93 | . 27 50 16 Damage Taken 2847 | . 903 1426 518 Core 550 | . 143 319 88 Absorbed by Shields . | . . . . Redirected to Shielding 70 | . . 56 14 Core Remaining (%) 71 | 100 42 . . Volleys Fired 134 | 5 64 62 3 Largest 2 | 2 2 2 2 Hottest 100 | 60 80 100 53 Shots Fired 246 | 10 127 103 6 Gun 221 | 10 127 81 3 Cannon 22 | . . 22 . Launcher 3 | . . . 3 Special . | . . . . Kinetic 138 | 5 93 37 3 Thermal 94 | . 28 66 . Explosive 3 | . . . 3 Electromagnetic 11 | 5 6 . . Robot Hit Streak 21 | 4 21 14 5 Robot Miss Streak 4 | 1 3 4 2 Penetration Max . | . . . . Secondary Targets 2 | . 1 1 . Max Gunslinging Chain 1 | . 1 1 . Shots Hit Robots 180 | 6 92 78 4 Core Hits 68 | 4 35 22 7 Critical Kills . | . . . . Critical Parts Destroyed . | . . . . Critical Strikes . | . . . . Melee Attacks . | . . . . Impact . | . . . . Slashing . | . . . . Piercing . | . . . . Sneak Attacks . | . . . . Combat Hostiles . | . . . . Follow-up Attacks . | . . . . Damage Inflicted 2144 | 63 836 1040 205 Guns 1644 | 63 823 743 15 Cannons 297 | . . 297 . Explosions 190 | . . . 190 Melee . | . . . . Ramming 13 | . 13 . . Kinetic 1007 | 21 562 409 15 Thermal 813 | . 182 631 . Explosive 190 | . . . 190 Electromagnetic 121 | 42 79 . . Impact . | . . . . Slashing . | . . . . Piercing . | . . . . Highest Corruption 1 | . 1 . . Average Corruption 1 | . 1 . . Corruption Purged . | . . . . Corruption Blocked . | . . . . Effects 2 | . 2 . . Message Errors 1 | . 1 . . Parts Rejected 1 | . 1 . . Overload Shots . | . . . . Overflow Damage 15 | . . 15 . Projectiles 15 | . . 15 . Explosions . | . . . . Melee . | . . . . Knockbacks . | . . . . Impact . | . . . . Kinetic . | . . . . Secondary . | . . . . Self-Inflicted Damage 70 | . . . 70 Shots 2 | . . . 2 Rammed . | . . . . Targets Rammed 5 | . 5 . . Kicked 5 | . 5 . . Crushed . | . . . . Highest Temperature 438 | 20 91 438 26 Average Temperature 90 | 15 25 158 15 Received Heat Transfer 924 | . 420 351 153 Effects 3 | . . 3 . Shutdowns 1 | . . 1 . Interference 1 | . . 1 . Damage (minor) 1 | . . 1 . Siege Activations . | . . . . Robots Corrupted . | . . . . Combat Hostiles . | . . . . Parts Fried . | . . . . Impact Corruptions . | . . . . Robots Melted . | . . . . Combat Hostiles . | . . . . Parts Melted 9 | . 1 8 . Heat Transferred 1829 | . 425 1404 . Parts Sabotaged . | . . . . Parts Stolen . | . . . . Parts Stripped . | . . . . Power Chain Reactions . | . . . . Alert | -11 -10 -9 -9 ------- Run | Yrd Mat Mat Sto Peak Influence 281 | 15 179 211 281 Initial 89 | . 9 46 89 Average 80 | 5 56 119 126 Maximum Alert Level 1 | . . 1 1 Low Security (%) 97 | 100 100 95 90 Level 1 2 | . . 4 9 Level 2 . | . . . . Level 3 . | . . . . Level 4 . | . . . . Level 5 . | . . . . High Security . | . . . . Max Security . | . . . . Squads Dispatched 3 | . 2 1 . Investigation 1 | . 1 . . Extermination . | . . . . Reinforcement 2 | . 1 1 . Assault . | . . . . Garrison . | . . . . Intercept . | . . . . Searches Triggered . | . . . . Construction Impeded . | . . . . Haulers Reinforced . | . . . . Active Scanning Responses . | . . . . Cargo Convoy Interrupts . | . . . . Stealth | -11 -10 -9 -9 --------- Run | Yrd Mat Mat Sto Distress Signals 4 | . 1 2 1 Communications Jammed . | . . . . Distress Signals . | . . . . Times Spotted 75 | . 24 39 12 Peak Tracking Total 8 | . 4 6 8 Tactical Retreats 11 | . 2 6 3 Traps | -11 -10 -9 -9 ------- Run | Yrd Mat Mat Sto Traps Triggered 2 | . 2 . . Indirectly . | . . . . Trap Hack Attempts . | . . . . Triggered . | . . . . Disarmed . | . . . . Reprogrammed . | . . . . Reused . | . . . . Traps Extracted . | . . . . Installed . | . . . . Triggered . | . . . . Machines | -11 -10 -9 -9 ---------- Run | Yrd Mat Mat Sto Machines Disabled 1 | . . . 1 Max in Single Turn 1 | . . . 1 Machines Repaired . | . . . . Machines Dismantled . | . . . . Machines Sabotaged . | . . . . Overloaded Fab Kills . | . . . . Hacking | -11 -10 -9 -9 --------- Run | Yrd Mat Mat Sto Machines Accessed 3 | . . 2 1 Terminals 3 | . . 2 1 Fabricators . | . . . . Repair Stations . | . . . . Recycling Units . | . . . . Scanalyzers . | . . . . Garrison Access . | . . . . Total Hacks 6 | . . 4 2 Successful 3 | . . 2 1 Failed 3 | . . 2 1 Catastrophic . | . . . . Database Lockouts . | . . . . Manual . | . . . . Terminals 6 | . . 4 2 Fabricators . | . . . . Repair Stations . | . . . . Recycling Units . | . . . . Scanalyzers . | . . . . Garrison Access . | . . . . Terminal Hacks 3 | . . 2 1 Locate Traps 1 | . . 1 . Zone Layout 2 | . . 1 1 Fabricator Hacks . | . . . . Repair Station Hacks . | . . . . Recycling Unit Hacks . | . . . . Scanalyzer . | . . . . Garrison Access Hacks . | . . . . Unauthorized Hacks . | . . . . Terminals . | . . . . Fabricators . | . . . . Repair Stations . | . . . . Recycling Units . | . . . . Scanalyzers . | . . . . Garrison Access . | . . . . Data Cores Recovered . | . . . . Used . | . . . . Hacking Detections 1 | . . 1 . Full Trace Events . | . . . . Feedback Events . | . . . . Feedback Blocked . | . . . . Robot Schematics Acquired . | . . . . Robots Built . | . . . . Authchips . | . . . . Time . | . . . . Total Robot Build Rating . | . . . . Part Schematics Acquired . | . . . . Parts Built . | . . . . Authchips . | . . . . Time . | . . . . Total Part Build Rating . | . . . . Parts Repaired . | . . . . Time . | . . . . Parts Recycled . | . . . . Recycled Matter . | . . . . Retrieved Matter . | . . . . Retrieved Components . | . . . . Parts Scanalyzed . | . . . . Part Schematics Acquired . | . . . . Parts Damaged . | . . . . Bothacking | -11 -10 -9 -9 ------------ Run | Yrd Mat Mat Sto Used RIF Installer . | . . . . Robots Hacked . | . . . . Non-combat . | . . . . Combat . | . . . . Robot Hacks Applied . | . . . . Relay Couplers Released . | . . . . Fabnet Peak Effective % . | . . . . Robots Rewired . | . . . . Allies Hacked . | . . . . Hacks Repelled . | . . . . Allies | -11 -10 -9 -9 -------- Run | Yrd Mat Mat Sto Total Allies . | . . . . Largest Group . | . . . . Highest-Rated Group . | . . . . Highest-Rated Ally . | . . . . Total Orders . | . . . . Ally Attacks . | . . . . Total Damage . | . . . . Kills . | . . . . Allies Corrupted . | . . . . Allies Melted . | . . . . Intel | -11 -10 -9 -9 ------- Run | Yrd Mat Mat Sto Robot Analysis Total . | . . . . Derelict Logs Recovered . | . . . . Drone Launches . | . . . . Drone Recoveries . | . . . . Exploration | -11 -10 -9 -9 ------------- Run | Yrd Mat Mat Sto Turns Passed 2001 | 109 1055 621 216 Spaces Moved 979 | 86 462 272 159 Core 2 | 2 . . . Treads 37 | . 23 10 4 Legs 812 | . 395 262 155 Wheels 128 | 84 44 . . Hover . | . . . . Flight . | . . . . Fastest Speed 50 | 50 90 120 120 Average Speed 148 | 89 170 144 121 Slowest Speed 330 | 100 190 330 160 Overloaded Moves . | . . . . Propulsion Burnouts . | . . . . Robots Hopped . | . . . . Cave-ins Triggered . | . . . . Exploration Rate (%) 30 | 4 48 33 35 Regions Visited 3 Branch Regions 1 Pre-discovered Areas . | . . . . Known Exits Taken . | . . . . Unknown Exits Taken 3 | 1 1 1 . Scrap Searched . | . . . . Spaces Dug . | . . . . Terrain Destroyed 16 | . . . 16 Melee . | . . . . Projectile . | . . . . AOE 16 | . . . 16 Terrain Rammed . | . . . . Walls Destroyed . | . . . . Machines Disabled . | . . . . Actions | -11 -10 -9 -9 --------- Run | Yrd Mat Mat Sto Total 1297 | 105 615 400 177 Wait 66 | . 35 25 6 Move 976 | 85 461 271 159 Hop . | . . . . Pick Up 39 | 8 21 7 3 Fast Attach 13 | 6 3 2 2 Attach 23 | 1 8 11 3 Detach 3 | . . 3 . Swap 16 | . 9 6 1 Drop 22 | . 9 13 . Fire 134 | 5 64 62 3 Melee . | . . . . Ram . | . . . . Kick 5 | . 5 . . Crush . | . . . . Escape Stasis . | . . . . Rewire . | . . . . Trap . | . . . . Miscellaneous . | . . . . Route ------- -11/Scrapyard -10/Materials (discovered 2 exits: *Mat / [*Min]) -9/Materials -9/Storage History --------- Turn | Location | Event 31 | -11/Scrapyard | Discovered new exit (range 13) 110 | -11/Scrapyard | Entered Materials 217 | -10/Materials | Lost 3 parts (1n1u1w) 336 | -10/Materials | Build established: Mutant 782 | -10/Materials | Discovered new exit (range 11) 980 | -10/Materials | Core integrity fell below 50% 1088 | -10/Materials | Discovered new exit (range 4) 1165 | -10/Materials | Entered another Materials area 1165 | -9/Materials | Evolved 2 slots: Propulsion x1, Utility x1 1514 | -9/Materials | Core integrity fell below 50% 1581 | -9/Materials | Lost 5 parts (1p3n1u) 1768 | -9/Materials | Discovered new exit (range 16) 1786 | -9/Materials | Entered Storage 1899 | -9/Storage | Core integrity fell below 20% 2002 | -9/Storage | Destroyed by G-34 Mercenary with Small Laser Last Messages --------------- 01796_ Current location identified: Storage 01819_ Acquired Imp. Treads. 01821_ Acquired EM Shotgun. 01836_ Acquired Weapon Shielding. 01842_ K-01 Serf collects debris. 01850_ Acquired EMP Blaster. 01850_ K-01 Serf collects debris. 01933_ Weapon Shielding destroyed. 01951_ K-01 Serf cleans the Terminal. 01956_ W-16 Scout sends out distress signal. 01960_ Connecting with Terminal... >>Layout(Zone) Retrieving Zone 3W layout... Downloaded map data. 01963_ K-01 Serf cleans the Terminal. 01983_ Imp. Assault Rifle destroyed. 01983_ Aluminum Leg destroyed. 01992_ Acquired Rocket Launcher. 01998_ Y-45 Defender destroyed. 01998_ G-34 Mercenary destroyed. Map ----- +----------------------------------------------------+ | | | | | | | | | | | | | ?????????????????????????????????????????????????? | | ?????????????????????????????????????????????????? | | ?????????????????????????????????????????????????? | | ?????????????????????????????????????????????????? | | ????????????????????????????????? ???????????????? | | ???????????????????????????????? ?????????????? | | ???????????????????????????????? #?????????????? | | ???????????????????????????????? #??#??????????? | | ???????????????????????????????? #? ???????????? | | ???????????????????????????????# # ???????????? | | ???????????????????????????????# # ????????????? | | ???????????????????????????????# /?????????????? | | ???????????????????????????????# #?????????????? | | ???????????????????????????????# #?????????????? | | ???????????????????????????????# #?????????????? | | ??????????????????????????????## ##????????????? | | ???????????????????????????#### ###########??? | | ??????????????????????######T## #### | | ??????????????????????#]]] " ! Y Y Y | | ??????????????????????# @ !%g[ #### | | ??????????????????????#]]]]" ####### # | | ??????????????????????########## Y###?????# # "" | | ?????????????????????????????####+######### # "" | | ??????????????????????????????# # # "" | | ??????????????????????????????# # # | | ??????????????????????????????# / # | | ??????????????????????????????# # # | | ??????????????????????????????# # ## # | | ??????????????????????????????# # #### | | ??????????????????????????????############# ## | | ??????????????????????????################ # | | ??????????????????????????# # | | ??????????????????????????# ##### T # | | ??????????????????????????# #???# # | | ???????????????????? #???# # | | ?????????????????????? ####+######## #?#####+##### | | ?????????????????????????????#######+### # | | ?????????????????????????????# ## # """ """ " | | ?????????????????????????????" ## # """ """ | | ?????????????????????????????# ## # """ """ " | | ???????????????????????????######### # """ """ # | | ???????????????????????????# ## # """ """ # | | ???????????????????????????# ## # / | | ???????????????????????????# ## # # | +----------------------------------------------------+ Best States ------------- Heat Dissipation 28 Energy Generation 14 Energy Capacity 280 Matter Stores 300 Matter Capacity 300 Sight Range 16 Robot Scan Range 14 Terrain Scan Density 10 ECM Strength 1 Utility Shielding 33 Weapon Shielding 33 Evasion (%) 55 Recoil Reduction 2 Authchip Count 1 Item Schematics ----------------- None Robot Schematics ------------------ None Fabricated ------------ Nothing Alien Tech Used ----------------- None Achievements -------------- None Challenges ------------ None Game ------ Seed FocalContainmentSpecial Manual? 0 Play Time 00:28:48 Cumulative 8.8 hours Start 2025.05.05 @ 11:47:48 End 2025.05.05 @ 12:14:24 Sessions 1 Manual Loads 0 Difficulty Rogue Special Mode None Game No. 12 Rogue 12 Adventurer 0 Explorer 0 Win Type - Total 0 Types 0/0/0/0/0/0/0/0/0 Lore% 3 Gallery% 14 Achievement% 12 Wizard Run 0 Options --------- Layout 1 ASCII 0 Keyboard 0 Movement Mouse Keybinds 0 Fullscreen 2 Font 32/Terminus Map View 50x35 Zoom Use 0% Tactical HUD 1 Map Filters NONE Filters NONE Steam 1 RUN: 5e893b08-2ada-4d40-aa38-c694300d8f9e